bitfinex-derivatives/quotes_SOLF0:USTF0_20250309
["timestamp","ask_amount","ask_price","bid_price","bid_amount"]
[1741501341360,33.2992,138.16,138.15,8.8e-06]
[1741501342654,7.2392,138.16,138.15,8.8e-06]
[1741501342859,33.2992,138.16,138.15,8.8e-06]
[1741501347264,7.2392,138.16,138.15,8.8e-06]
[1741501347666,0.05182148,138.17,138.15,8.8e-06]
[1741501348966,7.29062148,138.17,138.15,8.8e-06]
[1741501349362,0.05182148,138.17,138.15,8.8e-06]
[1741501353963,7.29062148,138.17,138.15,8.8e-06]
[1741501354862,7.2382,138.19,138.15,11.89105902]
[1741501355064,26.06,138.2,138.15,11.89105902]
[1741501355264,26.06,138.23,138.15,11.89105902]
[1741501355460,26.06,138.23,138.15,11.89105022]
[1741501355664,7.2382,138.18,138.15,11.89105022]
[1741501356076,7.2382,138.18,138.15,11.94429574]
[1741501356875,37.95105022,138.23,138.15,11.94429574]
[1741501357474,37.95105022,138.23,138.15,0.05324552]
[1741501358074,7.2386,138.18,138.15,0.05324552]
[1741501360265,37.95105022,138.23,138.15,0.05324552]
[1741501361576,37.95105022,138.23,138.15,11.94429574]
[1741501361577,26.06,138.23,138.15,11.94429574]
[1741501361779,7.2375,138.2,138.16,7.2392]
[1741501362275,26.06,138.23,138.17,0.05189419]
[1741501362479,7.2378,138.19,138.17,0.05189419]
[1741501362982,26.06,138.23,138.17,0.05189419]
[1741501362983,7.2373,138.2,138.17,0.05189419]
[1741501363378,7.2373,138.2,138.18,7.60271442]
[1741501365984,7.2369,138.21,138.18,7.60271442]
[1741501366479,7.2362,138.22,138.2,7.60271442]
[1741501366786,7.60271442,138.25,138.2,7.65576709]
[1741501367582,7.2364,138.22,138.2,7.65576709]
[1741501368182,33.64271442,138.25,138.2,7.65576709]
[1741501368379,7.60271442,138.25,138.2,7.65576709]
[1741501369580,7.2358,138.23,138.2,7.65576709]
[1741501370184,7.2362,138.22,138.2,7.65576709]
[1741501370578,7.60271442,138.25,138.2,7.65576709]
[1741501370778,7.2357,138.23,138.2,7.65576709]
[1741501371286,7.60271442,138.25,138.2,7.65576709]
[1741501371485,7.2353,138.24,138.2,14.89256709]
[1741501371882,7.2353,138.24,138.22,7.60271442]
[1741501372281,7.2342,138.26,138.22,14.83851442]
[1741501372482,7.2342,138.26,138.25,7.60271442]
[1741501373085,26.04,138.28,138.25,7.60271442]
[1741501373290,29.47346127,138.3,138.27,7.60271442]
[1741501373587,37.07617569,138.3,138.25,7.60271442]
[1741501373787,7.60271442,138.28,138.27,0.04694299]
[1741501373986,7.60271442,138.28,138.23,7.60271442]
[1741501374287,7.2335,138.27,138.26,0.0513792]
[1741501374885,37.07617569,138.3,138.26,0.0513792]
[1741501374886,7.2333,138.28,138.26,0.0513792]
[1741501375083,29.47346127,138.3,138.26,0.0513792]
[1741501375279,29.47346127,138.3,138.27,7.60271442]
[1741501376083,7.2329,138.29,138.27,7.60271442]
[1741501379589,33.64271442,138.32,138.27,7.60271442]
[1741501379782,7.233,138.28,138.27,7.60271442]
[1741501385789,7.233,138.28,138.26,0.0513792]
[1741501385994,7.2335,138.27,138.26,0.0513792]
[1741501387893,7.60271442,138.3,138.26,0.0513792]
[1741501388093,7.2331,138.28,138.26,0.0513792]
[1741501388592,7.2322,138.3,138.27,7.60271442]
[1741501390495,7.2322,138.3,138.27,14.83621442]
[1741501391396,33.64271442,138.32,138.27,14.83621442]
[1741501391397,7.2316,138.31,138.27,14.83621442]
[1741501392399,7.2316,138.31,138.29,7.60271442]
[1741501393595,7.60271442,138.34,138.29,7.60271442]
[1741501394095,26.02,138.35,138.3,0.05330064]
[1741501394297,7.2312,138.32,138.3,0.05330064]
[1741501395096,26.02,138.35,138.3,0.05330064]
[1741501395097,7.2314,138.31,138.3,0.05330064]
[1741501395486,7.60271442,138.37,138.3,0.05330064]
[1741501395691,7.60271442,138.37,138.31,7.60271442]
[1741501395896,7.60271442,138.35,138.3,0.05330064]
[1741501396098,26.02,138.34,138.3,0.05330064]
[1741501396695,7.2314,138.31,138.3,0.05330064]
[1741501404199,33.2501,138.34,138.3,0.05330064]
[1741501404399,26.02,138.35,138.31,7.60271442]
[1741501404801,33.62271442,138.36,138.31,14.83401442]
[1741501405203,7.2297,138.35,138.31,14.83401442]
[1741501406005,7.2297,138.35,138.31,7.60271442]
[1741501406402,33.249,138.36,138.33,7.60271442]
[1741501406598,26.02,138.36,138.33,7.60271442]
[1741501406803,7.2294,138.35,138.33,7.65795609]
[1741501408501,7.2276,138.39,138.33,7.65795609]
[1741501408697,7.2276,138.39,138.35,7.60271442]
[1741501409707,81.9490223,138.41,138.35,7.60271442]
[1741501409708,7.2278,138.38,138.35,7.60271442]
[1741501409907,81.9490223,138.41,138.35,7.60271442]
[1741501410109,81.9490223,138.41,138.35,7.65749125]
[1741501410307,7.2276,138.39,138.35,7.65749125]
[1741501410607,81.9490223,138.41,138.35,7.65749125]
[1741501410908,33.62271442,138.41,138.35,7.65749125]
[1741501411907,7.2275,138.39,138.35,7.65749125]
[1741501412109,33.62271442,138.41,138.35,7.65749125]
[1741501412304,33.62271442,138.41,138.35,14.88669125]
[1741501412810,7.2274,138.39,138.35,7.65749125]
[1741501413211,33.62271442,138.41,138.35,7.65749125]
[1741501413405,7.2269,138.4,138.37,7.60271442]
[1741501414307,7.2275,138.39,138.37,7.60271442]
[1741501414705,26.02,138.41,138.37,7.60271442]
[1741501414910,33.62271442,138.41,138.37,7.60271442]
[1741501415606,7.2277,138.38,138.37,7.60271442]
[1741501415799,33.62271442,138.41,138.35,7.65749125]
[1741501416204,7.2288,138.36,138.35,7.65749125]
[1741501416606,7.2288,138.36,138.35,0.05477683]
[1741501419406,7.2288,138.36,138.35,7.683e-05]
[1741501420705,9.2486,138.36,138.35,7.683e-05]
[1741501421904,7.233,138.28,138.27,7.60271442]
[1741501424010,0.04890368,138.29,138.26,0.04936398]
[1741501424210,7.2335,138.27,138.26,0.04936398]
[1741501424807,7.2331,138.28,138.26,0.04936398]
[1741501425425,7.2335,138.27,138.26,0.04936398]
[1741501425716,0.04890368,138.29,138.26,0.04936398]
[1741501427412,7.2335,138.27,138.26,0.04936398]
[1741501428016,7.2331,138.28,138.26,0.04936398]
[1741501428419,0.04890368,138.29,138.27,7.60271442]
[1741501429419,0.04890368,138.29,138.27,14.83591442]
[1741501429624,0.04890368,138.29,138.27,7.60271442]
[1741501430416,0.04890368,138.29,138.28,7.233]
[1741501431520,7.2299,138.34,138.27,33.62271442]
[1741501431721,7.2299,138.34,138.31,7.60271442]
[1741501432719,7.25158413,138.34,138.31,7.64974183]
[1741501433524,7.62439855,138.34,138.31,0.04702741]
[1741501434120,7.2309,138.32,138.31,0.04702741]
[1741501434721,33.2509,138.32,138.31,0.04702741]
[1741501442739,33.62271442,138.32,138.25,11.52801442]
[1741501442940,7.234,138.27,138.25,9.58811442]
[1741501444040,7.28280968,138.27,138.25,9.63383437]
[1741501444438,0.04880968,138.27,138.25,9.63383437]
[1741501445041,7.28270968,138.27,138.25,9.63383437]
[1741501445240,0.04880968,138.27,138.25,9.63383437]
[1741501445739,7.234,138.26,138.25,7.64843437]
[1741501445941,7.234,138.26,138.25,0.04571995]
[1741501452443,33.254,138.26,138.25,0.04571995]
[1741501452850,33.254,138.26,138.25,1.995e-05]
[1741501453049,40.85671442,138.26,138.25,1.995e-05]
[1741501461448,7.28250968,138.27,138.25,1.995e-05]
[1741501461654,33.30250968,138.27,138.25,1.995e-05]
[1741501462050,7.234,138.26,138.25,1.995e-05]
[1741501464352,33.30240968,138.27,138.25,1.995e-05]
[1741501464851,26.06880968,138.27,138.25,1.995e-05]
[1741501465653,7.234,138.26,138.25,1.995e-05]
[1741501480765,9.2806,138.26,138.25,1.995e-05]
[1741501480959,11.2077,138.26,138.25,1.995e-05]
[1741501481663,14.8277,138.26,138.25,1.995e-05]
[1741501481864,7.60271442,138.19,138.14,13.35481442]
[1741501482168,33.62271442,138.19,138.14,13.35481442]
[1741501482367,7.2388,138.17,138.14,13.35481442]
[1741501482867,0.05059395,138.17,138.14,13.40082166]
[1741501483371,26.02,138.16,138.14,0.04600724]
[1741501483971,33.2594,138.16,138.14,0.04600724]
[1741501484361,26.02,138.16,138.14,0.04600724]
[1741501490768,33.2594,138.16,138.14,0.04600724]
[1741501491069,26.02,138.16,138.14,0.04600724]
[1741501491470,7.2398,138.15,138.14,0.04600724]
[1741501492171,26.02,138.16,138.14,0.04600724]
[1741501492674,26.02,138.16,138.14,7.28590724]
[1741501494069,26.02,138.16,138.14,0.04600724]
[1741501497575,33.2595,138.16,138.14,0.04600724]
[1741501503383,26.02,138.16,138.14,0.04600724]
[1741501504383,7.2398,138.15,138.14,0.04600724]
[1741501508389,26.02,138.16,138.14,0.04600724]
[1741501509690,0.05059395,138.17,138.15,7.60271442]
[1741501509990,0.05059395,138.17,138.15,11.50591442]
[1741501510190,0.05059395,138.17,138.16,7.2392]
[1741501510585,33.2763,138.22,138.15,13.49281442]
[1741501510892,7.2356,138.23,138.19,14.84031442]
[1741501511092,7.2356,138.23,138.19,7.60271442]
[1741501511393,7.2362,138.22,138.19,7.60271442]
[1741501511797,0.04950858,138.22,138.21,7.60271442]
[1741501512989,29.47346127,138.25,138.21,11.53971442]
[1741501513186,28.2521122,138.26,138.23,7.60271442]
[1741501513391,7.2339,138.27,138.23,7.60271442]
[1741501514094,7.2339,138.27,138.24,0.05331546]
[1741501514290,7.60271442,138.29,138.24,0.05331546]
[1741501514487,7.60271442,138.31,138.25,7.60271442]
[1741501514689,7.60271442,138.31,138.23,26.02]
[1741501514690,7.60271442,138.31,138.27,7.60271442]
[1741501514992,7.233,138.28,138.27,0.04907199]
[1741501518901,7.232,138.3,138.27,0.04907199]
[1741501519506,7.232,138.3,138.27,7.65178641]
[1741501519700,7.60271442,138.31,138.27,7.65178641]
[1741501520299,7.2328,138.29,138.27,7.65178641]
[1741501521101,7.60271442,138.31,138.27,7.65178641]
[1741501521407,7.233,138.28,138.27,0.04907199]
[1741501524400,7.60271442,138.29,138.27,0.04907199]
[1741501524401,7.2326,138.29,138.27,0.04907199]
[1741501525208,7.233,138.28,138.27,0.04907199]
[1741501529904,7.60271442,138.29,138.27,0.04907199]
[1741501530213,26.02,138.3,138.27,0.04907199]
[1741501530711,33.2524,138.3,138.27,0.04907199]
[1741501530905,26.02,138.3,138.27,0.04907199]
[1741501531306,7.60271442,138.31,138.27,14.88508641]
[1741501531506,26.0,138.33,138.27,7.65178641]
[1741501532013,7.60271442,138.34,138.27,7.65178641]
[1741501532206,7.2315,138.31,138.27,14.88508641]
[1741501533001,7.2322,138.3,138.27,7.65178641]
[1741501534309,26.0,138.33,138.27,7.65178641]
[1741501534612,7.2324,138.29,138.27,7.65178641]
[1741501535605,7.2321,138.3,138.27,7.65178641]
[1741501536208,7.2321,138.3,138.27,14.88528641]
[1741501539912,7.60271442,138.32,138.27,7.65178641]
[1741501540513,7.2322,138.3,138.27,14.88518641]
[1741501541016,7.2316,138.31,138.28,7.2329]
[1741501541506,26.0,138.33,138.27,7.65178641]
[1741501541711,7.2312,138.32,138.29,7.2321]
[1741501543818,26.0,138.33,138.29,7.60271442]
[1741501544318,26.0,138.33,138.31,7.2313]
[1741501544617,7.60271442,138.34,138.31,0.05056385]
[1741501544815,14.83271442,138.34,138.31,0.05056385]
[1741501545319,7.60271442,138.34,138.31,0.05056385]
[1741501546518,7.2304,138.33,138.31,0.05056385]
[1741501548120,14.83271442,138.34,138.31,7.28186385]
[1741501548424,7.60271442,138.36,138.31,7.65327827]
[1741501548925,7.2296,138.35,138.32,7.2308]
[1741501550125,7.2296,138.35,138.31,7.65327827]
[1741501550331,7.2296,138.35,138.31,14.88437827]
[1741501551826,7.2299,138.34,138.31,7.65327827]
[1741501552228,7.60271442,138.35,138.31,0.05056385]
[1741501553829,7.2305,138.33,138.31,0.05056385]
[1741501555129,7.2309,138.32,138.31,0.05056385]
[1741501557329,7.2306,138.33,138.31,0.05056385]
[1741501558230,7.60271442,138.35,138.31,0.05056385]
[1741501558526,7.2309,138.32,138.31,0.05056385]
[1741501561026,7.2306,138.33,138.31,0.05056385]
[1741501562630,7.23,138.34,138.31,7.28186385]
[1741501565729,33.60271442,138.37,138.31,7.65327827]
[1741501565926,14.83121442,138.37,138.31,33.63327827]
[1741501566734,7.2285,138.37,138.31,33.63327827]
[1741501567530,33.58271442,138.39,138.31,33.63327827]
[1741501567531,7.60271442,138.39,138.33,7.2299]
[1741501567730,33.58271442,138.39,138.33,7.2299]
[1741501567934,33.58271442,138.39,138.35,0.04577032]
[1741501569536,7.228,138.38,138.35,0.04577032]
[1741501569837,33.58271442,138.39,138.35,0.04577032]
[1741501570224,7.2283,138.37,138.35,0.04577032]
[1741501571233,7.2288,138.36,138.35,0.04577032]
[1741501573032,14.83121442,138.37,138.35,0.04577032]
[1741501574632,7.60271442,138.37,138.35,0.04577032]
[1741501574834,7.2288,138.36,138.35,0.04577032]
[1741501579237,1.8987,138.42,138.36,7.2288]
[1741501579238,7.60271442,138.41,138.36,7.2288]
[1741501579437,7.60271442,138.41,138.35,7.64848474]
[1741501579647,7.2267,138.4,138.35,7.64848474]
[1741501579837,7.60271442,138.41,138.35,7.64848474]
[1741501581041,7.2268,138.4,138.35,14.87748474]
[1741501581544,7.2273,138.39,138.35,7.64848474]
[1741501582748,7.2273,138.39,138.35,14.87768474]
[1741501585651,7.2273,138.39,138.36,7.2286]
[1741501585847,7.60271442,138.41,138.36,7.2286]
[1741501586150,7.2269,138.4,138.37,7.60271442]
[1741501586539,7.2269,138.4,138.37,7.65280739]
[1741501586944,33.58271442,138.43,138.37,14.88080739]
[1741501587147,7.2263,138.41,138.37,14.88080739]
[1741501587746,7.2263,138.41,138.37,7.65280739]
[1741501588046,7.2263,138.41,138.38,7.2277]
[1741501588644,7.60271442,138.43,138.37,14.88070739]
[1741501588844,7.60271442,138.41,138.37,0.05009297]
[1741501589352,7.2277,138.38,138.37,0.05009297]
[1741501590655,7.2274,138.39,138.37,0.05009297]
[1741501590857,25.98,138.4,138.37,0.05009297]
[1741501591251,33.207,138.4,138.37,0.05009297]
[1741501591857,25.98,138.4,138.37,7.65280739]
[1741501592057,7.60271442,138.43,138.38,7.2277]
[1741501592058,7.2262,138.41,138.38,7.2277]
[1741501592652,25.98,138.42,138.37,7.65280739]
[1741501592854,7.2272,138.39,138.37,7.65280739]
[1741501593752,7.2269,138.4,138.37,14.88100739]
[1741501594655,25.98,138.42,138.37,14.88100739]
[1741501594862,7.2264,138.41,138.37,14.88100739]
[1741501595453,33.56271442,138.43,138.37,14.88100739]
[1741501595659,7.2267,138.4,138.37,14.88100739]
[1741501596360,33.56271442,138.43,138.37,14.88100739]
[1741501596361,7.2264,138.41,138.37,14.88100739]
[1741501596857,7.2264,138.41,138.38,7.2276]
[1741501597363,25.96,138.44,138.39,7.60271442]
[1741501597661,25.96,138.44,138.4,0.05290978]
[1741501597863,33.185,138.44,138.4,0.05290978]
[1741501598064,25.96,138.44,138.4,0.05290978]
[1741501598465,7.2259,138.42,138.4,0.05290978]
[1741501599062,7.2253,138.43,138.4,0.05290978]
[1741501600271,7.2257,138.42,138.4,0.05290978]
[1741501601558,7.2253,138.43,138.4,7.27950978]
[1741501601762,25.96,138.44,138.4,7.27950978]
[1741501602163,33.1849,138.44,138.4,7.27950978]
[1741501602462,25.96,138.46,138.41,7.60271442]
[1741501602664,7.2242,138.45,138.41,14.82861442]
[1741501602864,7.2242,138.45,138.42,0.05213501]
[1741501603169,7.60271442,138.47,138.43,7.2249]
[1741501603367,7.60271442,138.47,138.43,14.82761442]
[1741501604567,7.2236,138.46,138.43,7.60271442]
[1741501605262,14.82591442,138.47,138.43,14.82741442]
[1741501605461,7.2232,138.47,138.43,14.82741442]
[1741501605761,25.96,138.48,138.43,7.60271442]
[1741501605969,25.96,138.48,138.43,14.82751442]
[1741501606166,25.96,138.48,138.43,7.60271442]
[1741501606571,7.2232,138.47,138.43,14.82781442]
[1741501607069,25.96,138.48,138.43,7.60271442]
[1741501607272,7.2237,138.46,138.43,7.60271442]
[1741501608571,7.2237,138.46,138.43,14.82781442]
[1741501608977,7.2237,138.46,138.43,7.60271442]
[1741501610173,7.2237,138.46,138.43,14.82781442]
[1741501610673,7.2237,138.46,138.43,7.60271442]
[1741501612976,7.2237,138.46,138.43,14.82781442]
[1741501615474,7.2237,138.46,138.43,7.60271442]
[1741501615677,7.2242,138.45,138.43,7.60271442]
[1741501615877,25.96,138.48,138.43,7.60271442]
[1741501616079,7.60271442,138.47,138.42,0.05213501]
[1741501616772,7.2251,138.43,138.42,0.05213501]
[1741501618679,14.82781442,138.43,138.42,0.05213501]
[1741501618879,7.2275,138.39,138.37,7.60271442]
[1741501619075,25.96,138.42,138.37,7.60271442]
[1741501619277,25.96,138.42,138.39,7.60271442]
[1741501619578,7.2249,138.44,138.39,7.60271442]
[1741501619778,7.2249,138.44,138.39,14.82941442]
[1741501619978,7.27445945,138.43,138.4,0.04990131]
[1741501620180,0.04895945,138.43,138.4,0.04990131]
[1741501620377,0.04895945,138.43,138.41,7.60271442]
[1741501620983,0.04895945,138.43,138.4,0.04990131]
[1741501621982,7.65167387,138.43,138.4,0.04990131]
[1741501622876,7.2262,138.41,138.4,0.04990131]
[1741501623071,14.82891442,138.41,138.4,0.04990131]
[1741501623980,14.82891442,138.41,138.4,1.31e-06]
[1741501624181,7.228,138.38,138.35,7.60271442]
[1741501624378,25.96,138.39,138.35,7.60271442]
[1741501625179,0.0532822,138.38,138.36,0.05254565]
[1741501625982,7.2283,138.37,138.36,0.05254565]
[1741501626186,0.0532822,138.38,138.36,0.05254565]
[1741501629486,0.0532822,138.38,138.36,7.28114565]
[1741501633485,0.0532822,138.38,138.36,0.05254565]
[1741501634083,7.2283,138.37,138.36,0.05254565]
[1741501634384,33.1883,138.37,138.36,0.05254565]
[1741501634584,7.2304,138.33,138.25,40.21779781]
[1741501634780,7.60271442,138.35,138.3,7.60271442]
[1741501634980,25.96,138.34,138.3,7.60271442]
[1741501635380,25.96,138.34,138.27,25.96]
[1741501635682,0.05410248,138.32,138.3,7.60271442]
[1741501636087,0.05410248,138.32,138.31,7.2313]
[1741501636285,25.96,138.37,138.3,33.56271442]
[1741501636485,25.96,138.37,138.34,7.60271442]
[1741501636691,25.96,138.37,138.34,14.83221442]
[1741501636990,33.1883,138.37,138.34,7.60271442]
[1741501637489,33.23556404,138.37,138.34,0.05274943]
[1741501638485,7.2292,138.36,138.34,0.05274943]
[1741501639587,33.1892,138.36,138.34,0.05274943]
[1741501640896,25.96,138.36,138.34,0.05274943]
[1741501641700,25.96,138.36,138.34,7.28224943]
[1741501642295,25.96,138.36,138.34,0.05274943]
[1741501643597,7.2293,138.35,138.34,0.05274943]
[1741501644293,14.83201442,138.35,138.34,0.05274943]
[1741501645291,25.96,138.36,138.34,0.05274943]
[1741501647001,33.1889,138.36,138.34,0.05274943]
[1741501650103,25.96,138.36,138.34,0.05274943]
[1741501650307,7.2293,138.35,138.34,0.05274943]
[1741501650499,7.60271442,138.35,138.28,7.60271442]
[1741501650902,7.2312,138.32,138.28,14.83571442]
[1741501651101,33.1912,138.32,138.28,14.83571442]
[1741501651700,7.28529041,138.31,138.29,0.04722952]
[1741501651901,0.05379041,138.31,138.29,0.04722952]
[1741501652303,7.2319,138.3,138.29,0.04722952]
[1741501652806,0.05379041,138.31,138.29,0.04722952]
[1741501652807,7.28539041,138.31,138.29,0.04722952]
[1741501654208,0.05379041,138.31,138.29,0.04722952]
[1741501654405,7.2319,138.3,138.29,0.04722952]
[1741501654601,0.05379041,138.31,138.29,0.04722952]
[1741501657114,7.28529041,138.31,138.29,0.04722952]
[1741501658011,0.05379041,138.31,138.29,0.04722952]
[1741501658605,0.05379041,138.31,138.3,7.2319]
[1741501661216,25.96,138.34,138.31,7.2309]
[1741501661722,25.96,138.34,138.32,7.2308]
[1741501662315,26.00923039,138.34,138.32,7.2308]
[1741501662911,0.04923039,138.34,138.31,7.2311]
[1741501663114,26.00923039,138.34,138.3,7.60271442]
[1741501663517,26.00923039,138.34,138.32,7.2306]
[1741501663716,0.04923039,138.34,138.3,7.60271442]
[1741501664015,0.04923039,138.34,138.33,7.2303]
[1741501664216,0.04923039,138.34,138.3,11.57911442]
[1741501664415,0.04923039,138.34,138.32,0.05566261]
[1741501666513,0.04923039,138.34,138.32,7.28616261]
[1741501666719,0.04923039,138.34,138.32,0.05566261]
[1741501667522,0.04923039,138.34,138.33,7.2303]
[1741501669328,0.04923039,138.34,138.32,0.05566261]
[1741501669523,0.04923039,138.34,138.32,7.28626261]
[1741501673625,0.04923039,138.34,138.32,0.05566261]
[1741501673828,7.2303,138.33,138.32,0.05566261]
[1741501674229,0.04923039,138.34,138.32,0.05566261]
[1741501676331,7.27943039,138.34,138.32,0.05566261]
[1741501677235,0.04923039,138.34,138.32,0.05566261]
[1741501677436,0.04923039,138.34,138.32,7.28616261]
[1741501677834,0.04923039,138.34,138.32,0.05566261]
[1741501678032,7.27903039,138.34,138.32,0.05566261]
[1741501679238,0.04923039,138.34,138.32,7.28646261]
[1741501681139,0.04923039,138.34,138.33,7.2303]
[1741501682239,0.04923039,138.34,138.32,0.05566261]
[1741501683540,7.2303,138.33,138.32,0.05566261]
[1741501684544,0.04923039,138.34,138.32,0.05566261]
[1741501684742,7.27923039,138.34,138.32,0.05566261]
[1741501685040,0.04923039,138.34,138.32,0.05566261]
[1741501686245,0.04923039,138.34,138.32,7.28636261]
[1741501686543,0.04923039,138.34,138.32,0.05566261]
[1741501686837,0.04923039,138.34,138.33,7.2303]
[1741501687343,0.04923039,138.34,138.32,0.05566261]
[1741501687542,0.04923039,138.34,138.32,7.28616261]
[1741501688745,0.04923039,138.34,138.33,7.2303]
[1741501690650,0.04923039,138.34,138.32,7.28636261]
[1741501691747,0.04923039,138.34,138.33,7.2303]
[1741501693244,7.60271442,138.4,138.32,7.65837703]
[1741501693543,33.56271442,138.4,138.35,7.60271442]
[1741501693851,7.2277,138.39,138.35,7.60271442]
[1741501694039,33.56271442,138.4,138.35,7.60271442]
[1741501694244,7.2281,138.38,138.35,14.83181442]
[1741501694444,7.2281,138.38,138.36,0.04719391]
[1741501695244,7.2283,138.37,138.36,0.04719391]
[1741501695646,0.04857264,138.39,138.36,0.04719391]
[1741501696154,7.2279,138.38,138.36,0.04719391]
[1741501696646,7.27607264,138.39,138.36,0.04719391]
[1741501697651,7.2277,138.38,138.36,0.04719391]
[1741501698256,0.04857264,138.39,138.36,7.27569391]
[1741501700257,0.04857264,138.39,138.37,7.2278]
[1741501701555,0.04857264,138.39,138.36,7.27589391]
[1741501701952,7.27577264,138.39,138.36,7.27589391]
[1741501705161,0.04857264,138.39,138.36,7.27589391]
[1741501707764,0.04857264,138.39,138.37,7.2282]
[1741501710264,0.04857264,138.39,138.38,7.2277]
[1741501714572,0.04857264,138.39,138.37,7.2281]
[1741501722685,0.04857264,138.39,138.38,7.2277]
[1741501724986,0.04857264,138.39,138.37,9.47601442]
[1741501727097,0.04857264,138.39,138.37,1.8733]
[1741501727300,7.27597264,138.39,138.36,1.91129391]
[1741501728200,0.04857264,138.39,138.36,1.91129391]
[1741501728390,7.2277,138.38,138.36,1.91129391]
[1741501728793,0.04857264,138.39,138.36,1.91129391]
[1741501728997,7.27597264,138.39,138.36,1.91129391]
[1741501730000,0.04857264,138.39,138.36,1.91129391]
[1741501730302,0.04857264,138.39,138.36,9.13989391]
[1741501731196,0.04857264,138.39,138.36,1.91129391]
[1741501731402,0.04857264,138.39,138.37,7.2282]
[1741501732196,0.04857264,138.39,138.36,7.27569391]
[1741501732802,0.04857264,138.39,138.36,0.04719391]
[1741501733403,7.27617264,138.39,138.36,7.27589391]
[1741501733604,0.04857264,138.39,138.36,7.27589391]
[1741501735504,0.04857264,138.39,138.37,7.2279]
[1741501737603,0.04857264,138.39,138.38,7.2277]
[1741501738304,0.04857264,138.39,138.37,7.2281]
[1741501740006,0.04857264,138.39,138.36,7.27579391]
[1741501742106,7.27587264,138.39,138.36,7.27579391]
[1741501742708,0.04857264,138.39,138.36,0.04719391]
[1741501743402,0.04857264,138.39,138.37,7.2279]
[1741501745809,7.27587264,138.39,138.36,0.04719391]
[1741501746507,7.2278,138.38,138.36,0.04719391]
[1741501746702,25.96857264,138.39,138.36,0.04719391]
[1741501746911,7.2283,138.37,138.36,0.04719391]
[1741501747408,7.60271442,138.38,138.36,0.04719391]
[1741501747610,14.83061442,138.38,138.36,0.04719391]
[1741501747799,7.60271442,138.38,138.36,0.04719391]
[1741501748005,25.96857264,138.39,138.36,7.27579391]
[1741501748915,33.19607264,138.39,138.36,0.04719391]
[1741501750614,7.2278,138.38,138.36,0.04719391]
[1741501752014,33.19597264,138.39,138.36,0.04719391]
[1741501752214,25.96857264,138.39,138.36,0.04719391]
[1741501753511,7.2279,138.38,138.36,0.04719391]
[1741501755510,25.96857264,138.39,138.36,0.04719391]
[1741501755716,7.2283,138.37,138.36,0.04719391]
[1741501758119,14.83061442,138.38,138.36,0.04719391]
[1741501759120,7.2283,138.37,138.36,0.04719391]
[1741501759415,7.60271442,138.38,138.36,0.04719391]
[1741501759616,14.83061442,138.38,138.36,0.04719391]
[1741501760219,25.96857264,138.39,138.36,7.27569391]
[1741501761718,25.96857264,138.39,138.36,0.04719391]
[1741501761914,25.96857264,138.39,138.37,7.2282]
[1741501762316,25.96857264,138.39,138.36,0.04719391]
[1741501763424,25.96857264,138.39,138.36,7.27579391]
[1741501763719,33.19597264,138.39,138.36,7.27579391]
[1741501764820,25.96857264,138.39,138.36,0.04719391]
[1741501765019,7.2279,138.38,138.36,0.04719391]
[1741501766511,33.19587264,138.39,138.36,7.27589391]
[1741501767119,7.2279,138.38,138.36,0.04719391]
[1741501774126,7.27597264,138.39,138.36,0.04719391]
[1741501774828,0.04857264,138.39,138.36,7.64990833]
[1741501775330,0.04857264,138.39,138.38,14.83041442]
[1741501776732,55.39346127,138.45,138.42,7.2256]
[1741501776934,55.39346127,138.45,138.4,7.60271442]
[1741501777136,7.60271442,138.44,138.38,7.60271442]
[1741501777328,7.226,138.42,138.38,14.83021442]
[1741501778029,7.2267,138.4,138.39,0.04589564]
[1741501778229,7.2267,138.4,138.36,7.2287]
[1741501778431,7.2267,138.4,138.38,0.04996747]
[1741501778833,7.2272,138.39,138.38,0.04996747]
[1741501779631,14.82951442,138.4,138.38,0.04996747]
[1741501782738,40.74851442,138.42,138.38,0.04996747]
[1741501783236,40.74851442,138.42,138.38,7.27736747]
[1741501784139,7.2258,138.42,138.38,0.04996747]
[1741501784639,7.2262,138.41,138.38,0.04996747]
[1741501786735,7.2262,138.41,138.38,7.27766747]
[1741501787238,33.1453,138.43,138.39,7.60271442]
[1741501787441,33.1453,138.43,138.39,14.82941442]
[1741501787641,25.92,138.43,138.39,14.82941442]
[1741501787941,7.2256,138.42,138.39,14.82941442]
[1741501788144,25.92,138.43,138.39,14.82941442]
[1741501788442,33.1455,138.43,138.39,14.82941442]
[1741501789834,33.1455,138.43,138.39,7.2267]
[1741501790741,7.2257,138.42,138.39,7.2267]